[Event "AUT-ch U16 Boys 2022"]
[Site "Sankt Veit an der Glan"]
[Date "2022.04.12"]
[Round "5.4"]
[White "Zaytsev, Alexander"]
[Black "Kienboeck, Benjamin"]
[Result "1/2-1/2"]
[ECO "B10"]
[WhiteElo "1837"]
[BlackElo "1900"]
[Annotator "RC"]
[PlyCount "67"]
[EventDate "2022.04.11"]
[EventType "swiss"]
[EventCountry "AUT"]
[SourceTitle "playchess.com"]
[Source "ChessBase"]
[SourceQuality "1"]
[TimeControl "5400+30"]

1. e4 {[%emt 0:00:03]} c6 {[%emt 0:00:07]} 2. Nf3 {[%emt 0:00:15]} d5 {[%emt 0:00:08]} 3. Nc3 {[%emt 0:00:07]} dxe4 {[%emt 0:00:14]} 4. Nxe4 {[%emt 0:00:15]} Nf6 {[%emt 0:00:40]} 5. Qe2 {[%emt 0:00:16]} Nxe4 {[%emt 0:00:42]} 6. Qxe4 {[%emt 0:00:02]} Be6 {[%emt 0:00:48]} 7. b3 {[%emt 0:00:23]} Nd7 {[%emt 0:00:27]} 8. Bb2 {[%emt 0:00:14]} Nf6 {[%emt 0:01:23]} 9. Qe3 {[%emt 0:00:19]} Bf5 {[%emt 0:11:51]} 10. Nd4 {[%emt 0:00:24]} Bg6 {[%emt 0:02:28]} 11. f4 {[%emt 0:01:11]} Qd7 {[%emt 0:07:03]} 12. O-O-O {[%emt 0:06:49]} a5 {[%emt 0:07:38]} 13. a4 {[%emt 0:02:51]} h5 {[%emt 0:04:06]} 14. Re1 {[%emt 0:04:18]} h4 {[%emt 0:05:33]} 15. Bc4 {[%emt 0:10:52]} Be4 {[%emt 0:02:34]} 16. Nf3 {[%emt 0:09:59]} Bxf3 {[%emt 0:06:53]} 17. Qxf3 {[%emt 0:00:58]} Rd8 {[%emt 0:00:29]} 18. Qe2 {[%emt 0:01:26]} Qg4 {[%emt 0:02:14]} 19. Bc3 {[%emt 0:16:26]} Qxe2 {[%emt 0:04:09]} 20. Bxe2 {[%emt 0:04:23]} b6 {[%emt 0:01:41]} 21. Bf3 {[%emt 0:01:35]} Kd7 {[%emt 0:01:39]} 22. f5 {[%emt 0:04:48]} Kc7 {[%emt 0:05:59]} 23. d3 {[%emt 0:01:33]} Nd5 {[%emt 0:01:14]} 24. Bd2 {[%emt 0:01:51]} Rd7 {[%emt 0:07:01]} 25. Re2 {[%emt 0:01:35]} Rg8 {[%emt 0:01:57]} 26. Bh5 {[%emt 0:08:13]} g6 {[%emt 0:01:40]} 27. fxg6 {[%emt 0:00:16]} f6 {[%emt 0:05:07]} 28. Bg4 {[%emt 0:01:15]} Rd6 {[%emt 0:01:03]} 29. Bf5 {[%emt 0:01:05]} e5 {[%emt 0:01:43]} 30. Rf1 {[%emt 0:03:41]} Ne7 {[%emt 0:00:30]} 31. Re4 {[%emt 0:02:01]} Nxf5 {[%emt 0:01:23]} 32. Rxf5 {[%emt 0:00:04]} Rxg6 {[%emt 0:00:01]} 33. Rxh4 {[%emt 0:02:11]} Rxg2 {[%emt 0:00:07]} 34. Rh7+ {[%emt 0:01:18]} 1/2-1/2

[Event "AUT-ch U16 Boys 2022"]
[Site "Sankt Veit an der Glan"]
[Date "2022.04.12"]
[Round "5.5"]
[White "Hengl, Philip"]
[Black "Gloessl, Sota Alexander"]
[Result "1/2-1/2"]
[ECO "B01"]
[WhiteElo "1973"]
[BlackElo "1887"]
[Annotator "RC"]
[PlyCount "119"]
[EventDate "2022.04.11"]
[EventType "swiss"]
[EventCountry "AUT"]
[SourceTitle "playchess.com"]
[Source "ChessBase"]
[SourceQuality "1"]
[TimeControl "5400+30"]

1. e4 {[%emt 0:00:02]} d5 {[%emt 0:00:26]} 2. exd5 {[%emt 0:00:42]} Nf6 {[%emt 0:00:10]} 3. Nf3 {[%emt 0:00:13]} Qxd5 {[%emt 0:00:07]} 4. Nc3 {[%emt 0:00:11]} Qd6 {[%emt 0:00:08]} 5. Bc4 {[%emt 0:01:05]} Nc6 {[%emt 0:02:12]} 6. O-O {[%emt 0:02:24]} Bg4 {[%emt 0:01:06]} 7. Be2 {[%emt 0:05:30]} a6 {[%emt 0:02:42]} 8. d3 {[%emt 0:01:31]} e6 {[%emt 0:04:28]} 9. Be3 {[%emt 0:01:19]} Be7 {[%emt 0:01:07]} 10. Qd2 {[%emt 0:02:15]} O-O {[%emt 0:00:54]} 11. h3 {[%emt 0:00:10]} Bh5 {[%emt 0:01:12]} 12. Rfe1 {[%emt 0:01:13]} Qd7 {[%emt 0:01:56]} 13. Rad1 {[%emt 0:01:04]} Rfd8 {[%emt 0:03:30]} 14. a3 {[%emt 0:04:57]} Nd5 {[%emt 0:07:07]} 15. Nxd5 {[%emt 0:00:08]} Qxd5 {[%emt 0:00:43]} 16. c4 {[%emt 0:03:52]} Qd7 {[%emt 0:04:05]} 17. d4 {[%emt 0:09:48]} Bf6 {[%emt 0:01:39]} 18. g4 {[%emt 0:03:44]} Bg6 {[%emt 0:00:54]} 19. g5 {[%emt 0:05:28]} Be7 {[%emt 0:00:01]} 20. Qc3 {[%emt 0:06:13]} e5 {[%emt 0:15:19]} 21. d5 {[%emt 0:06:23]} Nd4 {[%emt 0:02:29]} 22. Nxd4 {[%emt 0:03:21]} exd4 {[%emt 0:00:09]} 23. Qxd4 {[%emt 0:04:13]} Qxh3 {[%emt 0:02:52]} 24. Qg4 {[%emt 0:02:54]} Qxg4+ {[%emt 0:01:55]} 25. Bxg4 {[%emt 0:00:07]} f6 {[%emt 0:01:17]} 26. Bd4 {[%emt 0:03:59]} Kf8 {[%emt 0:01:19]} 27. f4 {[%emt 0:06:13]} c6 {[%emt 0:03:32]} 28. Bb6 {[%emt 0:01:47]} fxg5 {[%emt 0:01:03]} 29. Bxd8 {[%emt 0:00:47]} Rxd8 {[%emt 0:00:05]} 30. fxg5 {[%emt 0:01:50]} Bxg5 {[%emt 0:00:18]} 31. d6 {[%emt 0:01:03]} c5 {[%emt 0:00:23]} 32. Kg2 {[%emt 0:07:31]} Bf6 {[%emt 0:02:11]} 33. Rd2 {[%emt 0:04:50]} b5 {[%emt 0:01:54]} 34. cxb5 {[%emt 0:00:44]} axb5 {[%emt 0:00:01]} 35. d7 {[%emt 0:01:46]} c4 {[%emt 0:01:16]} 36. Kg3 {[%emt 0:04:31]} h5 {[%emt 0:00:45]} 37. Be6 {[%emt 0:01:24]} Bd3 {[%emt 0:02:30]} 38. Rf2 {[%emt 0:03:02]} Bg6 {[%emt 0:00:55]} 39. Bh3 {[%emt 0:00:55]} Bf7 {[%emt 0:00:32]} 40. Ree2 {[%emt 0:00:49]} Bd5 {[%emt 0:00:42]} 41. Rf5 {[%emt 0:00:25]} h4+ {[%emt 0:00:26]} 42. Kh2 {[%emt 0:00:31]} Bc6 {[%emt 0:01:00]} 43. Rd2 {[%emt 0:00:29]} Ke7 {[%emt 0:01:53]} 44. Rc5 {[%emt 0:00:33]} Bxd7 {[%emt 0:01:13]} 45. Rxd7+ {[%emt 0:00:19]} Rxd7 {[%emt 0:00:17]} 46. Bxd7 {[%emt 0:00:01]} Kxd7 {[%emt 0:00:21]} 47. Rxb5 {[%emt 0:00:20]} Kc6 {[%emt 0:00:40]} 48. a4 {[%emt 0:00:18]} g5 {[%emt 0:04:01]} 49. Kh3 {[%emt 0:00:07]} Be7 {[%emt 0:00:47]} 50. Kg4 {[%emt 0:00:10]} Bd8 {[%emt 0:00:14]} 51. Kh3 {[%emt 0:00:23]} Be7 {[%emt 0:00:05]} 52. Kg4 {[%emt 0:00:06]} Bd8 {[%emt 0:00:11]} 53. Rf5 {[%emt 0:00:52]} Kb6 {[%emt 0:00:59]} 54. Rb5+ {[%emt 0:00:02]} Kc6 {[%emt 0:00:08]} 55. Rf5 {[%emt 0:00:05]} Kb6 {[%emt 0:00:03]} 56. a5+ {[%emt 0:00:45]} Ka6 {[%emt 0:00:17]} 57. Rc5 {[%emt 0:00:14]} Bxa5 {[%emt 0:01:12]} 58. Rxc4 {[%emt 0:00:38]} Bd2 {[%emt 0:00:17]} 59. b3 {[%emt 0:00:17]} Kb5 {[%emt 0:00:07]} 60. Re4 {[%emt 0:00:37]} 1/2-1/2

[Event "AUT-ch U16 Boys 2022"]
[Site "Sankt Veit an der Glan"]
[Date "2022.04.12"]
[Round "5.6"]
[White "Wagner, Leopold Franziskus"]
[Black "Leitner, Thomas"]
[Result "1-0"]
[ECO "A48"]
[WhiteElo "2061"]
[BlackElo "1734"]
[Annotator "TA"]
[PlyCount "91"]
[EventDate "2022.04.11"]
[EventType "swiss"]
[EventCountry "AUT"]
[SourceTitle "playchess.com"]
[Source "ChessBase"]
[SourceQuality "1"]
[TimeControl "5400+30"]

{[%evp 17,91,4,3,-14,-9,-24,-18,-28,6,0,7,10,15,12,38,0,44,62,66,0,83,82,83,83,78,89,104,100,100,97,91,81,139,145,168,168,172,175,190,186,199,73,191,185,220,179,199,185,264,269,256,255,363,308,404,324,331,278,276,279,275,277,261,258,339,334,474,464,1621,397,795,788,1010,947,676,540]} 1. d4 {[%emt 0:00:01]} Nf6 {[%emt 0:00:15]} 2. Nf3 {[%emt 0:00:05]} g6 {[%emt 0:00:13]} 3. Bf4 {[%emt 0:00:07]} Bg7 {[%emt 0:00:13]} 4. Nbd2 {[%emt 0:00:18]} d5 {[%emt 0:00:41]} 5. e3 {[%emt 0:00:14]} O-O {[%emt 0:00:23]} 6. c3 {[%emt 0:00:06]} Nbd7 {[%emt 0:02:02]} 7. Bd3 {[%emt 0:00:11]} c5 {[%emt 0:01:37]} 8. O-O {[%emt 0:00:10]} b6 {[%emt 0:01:02]} 9. Qe2 {[%emt 0:01:14]} Bb7 {[%emt 0:02:49]} 10. Bg3 {[%emt 0:00:53] [#] D02: 1 d4 d5 2 Nf3 sidelines, including 2...Nf6 3 g3 and 2...Nf6 3 Bf4.} Ne4 $146 {[%emt 0:03:51]} ({Predecessor:} 10... c4 11. Bc2 b5 12. e4 e6 13. Bd6 Re8 14. e5 Nh5 {0-1 (83) Nossein,F (1705)-Brien,A ICCF email 2010}) 11. Rfd1 {[%emt 0:11:31]} Nxg3 {[%emt 0:11:13]} 12. hxg3 {[%emt 0:00:05] The position is equal.} c4 {[%emt 0:00:19]} 13. Bc2 {[%emt 0:00:10]} Rc8 {[%emt 0:02:30]} 14. e4 {[%emt 0:00:16]} e6 {[%emt 0:00:38]} 15. e5 {[%emt 0:00:58]} Qe7 {[%emt 0:02:43]} 16. Nf1 {[%emt 0:02:48]} f6 {[%emt 0:01:26]} 17. exf6 {[%emt 0:00:06]} Bxf6 {[%emt 0:00:25]} 18. N1h2 {[%emt 0:00:58]} (18. Re1 $14) 18... Rce8 {[%emt 0:10:56]} (18... e5 $11) 19. Ba4 $16 {[%emt 0:00:12]} a6 {[%emt 0:01:14]} 20. Bxd7 {[%emt 0:00:08]} Qxd7 {[%emt 0:00:14]} 21. Ng4 {[%emt 0:00:02]} Bg7 {[%emt 0:00:20]} 22. Nge5 {[%emt 0:00:29] Pair of Knights!} Qc7 {[%emt 0:00:29]} 23. Re1 {[%emt 0:01:01]} b5 {[%emt 0:02:00]} 24. g4 {[%emt 0:01:35]} Bc8 {[%emt 0:01:06]} (24... Rf4 $142) 25. g3 {[%emt 0:00:18]} a5 {[%emt 0:07:03]} 26. Kg2 {[%emt 0:00:53]} Re7 {[%emt 0:01:12]} 27. Rh1 {[%emt 0:00:48]} b4 {[%emt 0:01:50]} 28. Rae1 {[%emt 0:00:18]} Qb6 {[%emt 0:00:52] [#]} 29. Qc2 {[%emt 0:00:17]} (29. Rh4 $1 $18 {has better winning chances.}) 29... Bxe5 {[%emt 0:04:12]} (29... Rb7 $16 {was worth a try.}) 30. Nxe5 $18 {[%emt 0:00:09]} Rg7 {[%emt 0:00:17]} 31. Rh4 {[%emt 0:02:23]} Qd8 {[%emt 0:02:58]} 32. Qd2 {[%emt 0:00:54]} Qf6 {[%emt 0:00:58]} (32... g5 $142 33. Rh5 Qf6) 33. g5 {[%emt 0:00:42]} ({Not} 33. cxb4 g5 34. Rh3 axb4 $16) 33... Qe7 {[%emt 0:00:45]} 34. Ng4 {[%emt 0:01:06]} b3 {[%emt 0:04:18]} (34... Bd7 {keeps fighting.} 35. cxb4 axb4 36. Nf6+ Rxf6) 35. a3 {[%emt 0:00:52]} Qc7 {[%emt 0:01:46]} 36. Reh1 {[%emt 0:01:28]} Qe7 {[%emt 0:01:04]} 37. Nf6+ {[%emt 0:00:54]} Rxf6 {[%emt 0:00:17]} 38. gxf6 {[%emt 0:00:02]} Qxf6 {[%emt 0:00:09]} 39. Rf4 {[%emt 0:00:08]} Qe7 {[%emt 0:00:18]} 40. Qe3 {[%emt 0:00:19]} Qc7 {[%emt 0:01:37]} 41. Rf6 {[%emt 0:00:28]} Re7 {[%emt 0:01:09]} (41... a4 $142 42. g4 Qe7) 42. Qf3 {[%emt 0:00:27] [#] Rf8+ would kill now.} ({Weaker is} 42. Qh6 Rg7 43. Rh4 Qe7 $18) 42... Qd8 {[%emt 0:00:28] Prevents Rf8+.} (42... Re8 $142 43. Rh4 Qg7) 43. Qf4 $2 {[%emt 0:01:36]} (43. Rxg6+ Rg7 44. Rxg7+ Kxg7 45. Qf4) 43... Qe8 $2 {[%emt 0:01:43]} (43... Rg7 44. Rh6 Qe7) 44. Qe5 {[%emt 0:00:28] White is clearly winning.} a4 {[%emt 0:00:31]} 45. Rh4 {[%emt 0:00:41]} Rg7 {[%emt 0:00:34]} 46. Rhf4 {[%emt 0:00:11] Weighted Error Value: White=0.31/Black=0.36} 1-0

[Event "AUT-ch U16 Boys 2022"]
[Site "Sankt Veit an der Glan"]
[Date "2022.04.12"]
[Round "5.7"]
[White "Hersel, Richard"]
[Black "Kuti, Oliver"]
[Result "1-0"]
[ECO "A45"]
[WhiteElo "1832"]
[BlackElo "1970"]
[Annotator "RC"]
[PlyCount "115"]
[EventDate "2022.04.11"]
[EventType "swiss"]
[EventCountry "AUT"]
[SourceTitle "playchess.com"]
[Source "ChessBase"]
[SourceQuality "1"]
[TimeControl "5400+30"]

1. d4 {[%emt 0:00:02]} Nf6 {[%emt 0:00:06]} 2. Bg5 {[%emt 0:00:02]} Ne4 {[%emt 0:01:38]} 3. Bf4 {[%emt 0:00:05]} d5 {[%emt 0:01:25]} 4. Nd2 {[%emt 0:00:18]} Nxd2 {[%emt 0:03:50]} 5. Qxd2 {[%emt 0:00:08]} e6 {[%emt 0:04:48]} 6. Nf3 {[%emt 0:03:10]} c5 {[%emt 0:04:03]} 7. e3 {[%emt 0:01:28]} b6 {[%emt 0:06:25]} 8. a4 {[%emt 0:07:03]} a6 {[%emt 0:10:07]} 9. Be2 {[%emt 0:16:36]} Nc6 {[%emt 0:01:04]} 10. Ne5 {[%emt 0:01:07]} Bb7 {[%emt 0:03:47]} 11. Bh5 {[%emt 0:12:23]} g6 {[%emt 0:03:27]} 12. Bf3 {[%emt 0:01:44]} Bg7 {[%emt 0:06:52]} 13. h4 {[%emt 0:07:00]} Rc8 {[%emt 0:20:36]} 14. Nxc6 {[%emt 0:01:07]} Bxc6 {[%emt 0:01:08]} 15. h5 {[%emt 0:15:41]} g5 {[%emt 0:04:10]} 16. Bg3 {[%emt 0:01:34]} O-O {[%emt 0:04:00]} 17. h6 {[%emt 0:04:11]} Bh8 {[%emt 0:01:07]} 18. Rh5 {[%emt 0:01:46]} f5 {[%emt 0:00:55]} 19. Be2 {[%emt 0:04:43]} Be8 {[%emt 0:01:52]} 20. Rh1 {[%emt 0:01:56]} a5 {[%emt 0:01:11]} 21. Bh5 {[%emt 0:09:26]} Rf6 {[%emt 0:01:50]} 22. f4 {[%emt 0:05:47]} Bxh5 {[%emt 0:06:31]} 23. fxg5 {[%emt 0:00:45]} Rf8 {[%emt 0:02:01]} 24. Rxh5 {[%emt 0:00:06]} Qe8 {[%emt 0:00:41]} 25. Rh3 {[%emt 0:00:59]} cxd4 {[%emt 0:00:34]} 26. exd4 {[%emt 0:00:18]} Rc4 {[%emt 0:00:20]} 27. c3 {[%emt 0:03:25]} Rxa4 {[%emt 0:01:52]} 28. Rxa4 {[%emt 0:00:00]} Qxa4 {[%emt 0:00:02]} 29. Qe2 {[%emt 0:00:37]} Qe8 {[%emt 0:00:54]} 30. Be5 {[%emt 0:00:20]} Bxe5 {[%emt 0:00:13]} 31. Qxe5 {[%emt 0:00:03]} Qg6 {[%emt 0:00:43]} 32. Kf2 {[%emt 0:00:30]} Re8 {[%emt 0:03:24]} 33. Kf3 {[%emt 0:01:04]} Re7 {[%emt 0:00:50]} 34. Kf4 {[%emt 0:01:05]} Kf7 {[%emt 0:00:36]} 35. Qd6 {[%emt 0:00:36]} Rb7 {[%emt 0:00:16]} 36. Qd8 {[%emt 0:00:42]} Re7 {[%emt 0:01:41]} 37. Qh8 {[%emt 0:00:07]} Re8 {[%emt 0:01:43]} 38. Qe5 {[%emt 0:00:01]} Re7 {[%emt 0:00:26]} 39. Qe2 {[%emt 0:00:09]} Kf8 {[%emt 0:00:45]} 40. Re3 {[%emt 0:01:28]} Kf7 {[%emt 0:00:29]} 41. Rh3 {[%emt 0:00:42]} Ke8 {[%emt 0:00:31]} 42. Qe5 {[%emt 0:00:13]} Kf7 {[%emt 0:00:43]} 43. Rh1 {[%emt 0:00:09]} Ke8 {[%emt 0:01:02]} 44. Qf6 {[%emt 0:00:58]} Qf7 {[%emt 0:01:11]} 45. Ke5 {[%emt 0:00:22]} Rb7 {[%emt 0:00:27]} 46. Qh8+ {[%emt 0:00:32]} Qf8 {[%emt 0:00:20]} 47. Qxf8+ {[%emt 0:00:31]} Kxf8 {[%emt 0:00:01]} 48. g6 {[%emt 0:00:40]} Ke7 {[%emt 0:00:02]} 49. gxh7 {[%emt 0:00:44]} Rb8 {[%emt 0:00:01]} 50. Rh3 {[%emt 0:00:11]} f4 {[%emt 0:00:58]} 51. Rh4 {[%emt 0:00:19]} f3 {[%emt 0:00:21]} 52. gxf3 {[%emt 0:00:13]} Rf8 {[%emt 0:00:01]} 53. Rf4 {[%emt 0:00:07]} Rh8 {[%emt 0:00:09]} 54. Rg4 {[%emt 0:00:13]} Rxh7 {[%emt 0:01:29]} 55. Rg7+ {[%emt 0:00:04]} Rxg7 {[%emt 0:00:09]} 56. hxg7 {[%emt 0:00:05]} Kf7 {[%emt 0:00:08]} 57. g8=Q+ {[%emt 0:00:08]} Kxg8 {[%emt 0:00:02]} 58. Kxe6 {[%emt 0:00:07]} 1-0

[Event "AUT-ch U16 Boys 2022"]
[Site "Sankt Veit an der Glan"]
[Date "2022.04.12"]
[Round "5.8"]
[White "Miazhynski, Michael"]
[Black "Weixler, Moritz"]
[Result "1-0"]
[ECO "A10"]
[WhiteElo "2047"]
[BlackElo "1190"]
[Annotator "RC"]
[PlyCount "41"]
[EventDate "2022.04.11"]
[EventType "swiss"]
[EventCountry "AUT"]
[SourceTitle "playchess.com"]
[Source "ChessBase"]
[SourceQuality "1"]
[TimeControl "5400+30"]

1. c4 {[%emt 0:00:02]} f5 {[%emt 0:00:13]} 2. Nc3 {[%emt 0:00:09]} Nf6 {[%emt 0:00:13]} 3. g3 {[%emt 0:00:04]} g6 {[%emt 0:00:15]} 4. Bg2 {[%emt 0:00:04]} Bg7 {[%emt 0:00:09]} 5. Nf3 {[%emt 0:00:05]} O-O {[%emt 0:00:17]} 6. O-O {[%emt 0:00:04]} d6 {[%emt 0:00:24]} 7. Rb1 {[%emt 0:00:23]} e5 {[%emt 0:01:32]} 8. d3 {[%emt 0:00:04]} c6 {[%emt 0:03:25]} 9. b4 {[%emt 0:00:09]} Re8 {[%emt 0:09:49]} 10. Qb3 {[%emt 0:19:16]} Be6 {[%emt 0:09:26]} 11. Ng5 {[%emt 0:01:14]} Bc8 {[%emt 0:06:44]} 12. c5+ {[%emt 0:33:50]} d5 {[%emt 0:01:28]} 13. e4 {[%emt 0:00:02]} Kf8 {[%emt 0:25:47]} 14. exd5 {[%emt 0:01:58]} cxd5 {[%emt 0:02:14]} 15. Nxd5 {[%emt 0:00:23]} Qd7 {[%emt 0:00:25]} 16. b5 {[%emt 0:02:53]} Nxd5 {[%emt 0:04:02]} 17. Bxd5 {[%emt 0:00:21]} h6 {[%emt 0:01:06]} 18. c6 {[%emt 0:02:07]} bxc6 {[%emt 0:01:49]} 19. Ba3+ {[%emt 0:00:05]} Re7 {[%emt 0:00:08]} 20. Bxc6 {[%emt 0:00:56]} Nxc6 {[%emt 0:00:59]} 21. Qf7# {[%emt 0:00:23]} 1-0

[Event "AUT-ch U16 Boys 2022"]
[Site "Sankt Veit an der Glan"]
[Date "2022.04.12"]
[Round "5.9"]
[White "Giselbrecht, Jerrik"]
[Black "Stadlinger, Lukas"]
[Result "1-0"]
[ECO "C50"]
[WhiteElo "1707"]
[BlackElo "1718"]
[Annotator "NA RC"]
[PlyCount "33"]
[EventDate "2022.04.11"]
[EventType "swiss"]
[EventCountry "AUT"]
[SourceTitle "playchess.com"]
[Source "ChessBase"]
[SourceQuality "1"]
[TimeControl "5400+30"]

1. e4 {[%emt 0:00:07]} e5 {[%emt 0:00:15]} 2. Nf3 {[%emt 0:00:18]} Nc6 {[%emt 0:00:28]} 3. Bc4 {[%emt 0:00:10]} Bc5 {[%emt 0:00:46]} 4. O-O {[%emt 0:00:29]} d6 {[%emt 0:02:22]} 5. c3 {[%emt 0:02:19]} Nf6 {[%emt 0:03:27]} 6. d3 {[%emt 0:01:07]} Bg4 {[%emt 0:03:41]} 7. Nbd2 {[%emt 0:04:25]} O-O {[%emt 0:06:25]} 8. h3 {[%emt 0:00:47]} Bh5 {[%emt 0:00:41]} 9. Re1 {[%emt 0:01:08]} Re8 {[%emt 0:05:05]} 10. Nf1 {[%emt 0:02:01]} Qd7 {[%emt 0:10:44]} 11. Ng3 {[%emt 0:04:19]} Bg6 {[%emt 0:00:10]} 12. Nh4 {[%emt 0:01:33]} d5 {[%emt 0:16:06]} 13. exd5 {[%emt 0:09:30]} Nxd5 {[%emt 0:01:50]} 14. Nxg6 {[%emt 0:02:01]} hxg6 {[%emt 0:01:07]} 15. Ne4 {[%emt 0:04:06]} Bb6 {[%emt 0:04:59]} 16. Qf3 {[%emt 0:01:38]} a6 {[%emt 0:13:03]} 17. Bxd5 {[%emt 0:00:42]} 1-0

[Event "AUT-ch U16 Boys 2022"]
[Site "Sankt Veit an der Glan"]
[Date "2022.04.13"]
[Round "6.1"]
[White "Hofstadler, Mario"]
[Black "Wendl, Philipp"]
[Result "1/2-1/2"]
[ECO "A05"]
[WhiteElo "2090"]
[BlackElo "2000"]
[Annotator "TA"]
[PlyCount "42"]
[EventDate "2022.04.11"]
[EventType "swiss"]
[EventCountry "AUT"]
[SourceTitle "playchess.com"]
[Source "ChessBase"]
[SourceQuality "1"]
[TimeControl "5400+30"]

{[%evp 19,42,-6,0,0,13,0,0,-28,0,0,0,0,41,44,129,137,174,119,189,0,180,0,189,0,170]} 1. Nf3 {[%emt 0:00:20]} Nf6 {[%emt 0:00:06]} 2. g3 {[%emt 0:00:27]} d5 {[%emt 0:02:29]} 3. Bg2 {[%emt 0:00:23]} e6 {[%emt 0:00:50]} 4. d4 {[%emt 0:01:09]} Be7 {[%emt 0:00:06]} 5. O-O {[%emt 0:00:16]} O-O {[%emt 0:00:05]} 6. c4 {[%emt 0:01:31]} dxc4 {[%emt 0:00:10]} 7. Qc2 {[%emt 0:00:29]} a6 {[%emt 0:00:25]} 8. Qxc4 {[%emt 0:00:39]} b5 {[%emt 0:00:58]} 9. Qc2 {[%emt 0:01:09]} Bb7 {[%emt 0:00:46]} 10. Bf4 {[%emt 0:07:26]} Nc6 {[%emt 0:04:06]} 11. Qd2 {[%emt 0:17:24] [#] E05: Open Catalan: 5 Nf3 Be7.} Ne4 $146 {[%emt 0:14:40]} ({Predecessor:} 11... Qc8 12. Rd1 Rd8 13. Qc1 b4 14. e3 Nd5 15. Nbd2 a5 16. Nc4 a4 17. e4 Nf6 18. e5 Nd5 {0-1 (49) Taksrud,V (2079)-Puzone,M (2405) ICCF email 2011}) 12. Qd1 {[%emt 0:04:27]} Bf6 {[%emt 0:06:14][%cal Rc6d4]} 13. Nc3 {[%emt 0:13:33]} Nxc3 {[%emt 0:08:50]} 14. bxc3 {[%emt 0:00:43]} Na5 {[%emt 0:00:45]} 15. Qc2 {[%emt 0:09:31] Prevents Be4.} Rc8 {[%emt 0:08:57]} 16. Rfd1 {[%emt 0:00:23]} Qd5 {[%emt 0:04:31] [#] Prevents e4.} (16... g5 $14 17. Bc1 c5) 17. a4 $1 $16 {[%emt 0:09:33]} Qb3 {[%emt 0:24:58]} 18. Qc1 {[%emt 0:15:06]} (18. Qd3 $18 b4 19. cxb4 Qxd3 20. Rxd3) 18... Qd5 {[%emt 0:07:18]} (18... Bxf3 $16 19. Bxf3 Qc4) 19. Qc2 {[%emt 0:03:47] aiming for axb5.} Qb3 {[%emt 0:00:05]} 20. Qc1 {[%emt 0:00:10] Nd2 is the strong threat.} Qd5 $1 {[%emt 0:00:06]} 21. Qc2 {[%emt 0:00:30] [#] Hoping for axb5.} Qb3 $1 {Weighted Error Value: White=0.51/Black=0.18 (very precise)} 1/2-1/2

[Event "AUT-ch U16 Boys 2022"]
[Site "Sankt Veit an der Glan"]
[Date "2022.04.13"]
[Round "6.2"]
[White "Lerch, Johannes"]
[Black "Borrmann, Laurenz"]
[Result "1/2-1/2"]
[ECO "B10"]
[WhiteElo "2229"]
[BlackElo "2232"]
[Annotator "TA"]
[PlyCount "53"]
[EventDate "2022.04.11"]
[EventType "swiss"]
[EventCountry "AUT"]
[SourceTitle "playchess.com"]
[Source "ChessBase"]
[SourceQuality "1"]
[TimeControl "5400+30"]

{[%evp 9,53,9,7,7,14,6,12,-6,0,-9,5,-7,0,-56,-44,-64,-70,-71,-42,-52,-22,-39,-12,-6,12,20,11,-12,71,20,60,20,27,33,118,123,101,112,127,0,0,0,122,0,0,0]} 1. e4 {[%emt 0:00:03]} c6 {[%emt 0:00:09]} 2. Nf3 {[%emt 0:00:10]} d5 {[%emt 0:00:07]} 3. d3 {[%emt 0:00:11]} dxe4 {[%emt 0:00:30]} 4. dxe4 {[%emt 0:00:05]} Qxd1+ {[%emt 0:00:04]} 5. Kxd1 {[%emt 0:00:04]} Nf6 {[%emt 0:00:06]} 6. Nfd2 {[%emt 0:00:14] B10: Caro-Kann: 2 d3 and 2 c4.} h5 {[%emt 0:00:11]} 7. f3 {[%emt 0:03:08]} g5 {[%emt 0:03:22][%cal Bg7g5,Bg5g4][%mdl 32]} 8. a4 {[%emt 0:03:36]} h4 {[%emt 0:04:27]} 9. Nc3 {[%emt 0:03:20] [#]} g4 $146 {[%emt 0:08:24]} ({Predecessor:} 9... Bh6 10. e5 Nd5 11. Nde4 g4 12. Nxd5 cxd5 13. Nc3 Be6 14. Bxh6 Rxh6 15. f4 Nc6 {1-0 (39) Deac,B (2625)-Motylev,A (2641) Chess.com INT 2021}) 10. f4 {[%emt 0:16:15]} Nh5 {[%emt 0:08:33]} 11. Ne2 {[%emt 0:04:09]} (11. Nb3 $11) 11... Nd7 {[%emt 0:07:31][%cal Bb8d7,Bd7c5,Bc5e6,Be6g7,Bg7f5][%mdl 32]} 12. e5 {[%emt 0:11:24]} Nc5 {[%emt 0:06:26]} 13. b4 {[%emt 0:05:05]} Ne6 {[%emt 0:00:59]} (13... Na6 $5 {[%cal Ra6b4]} 14. c3 Nc7 $11) 14. Nc4 {[%emt 0:03:37]} Neg7 {[%emt 0:00:53]} 15. Ne3 {[%emt 0:06:00]} Be6 {[%emt 0:05:19]} (15... Bf5 $5) 16. Ke1 {[%emt 0:02:54]} Rg8 {[%emt 0:04:58]} 17. g3 {[%emt 0:04:00]} Nf5 {[%emt 0:01:14]} 18. Kf2 {[%emt 0:01:01]} h3 {[%emt 0:09:04]} (18... Nxe3 $11 {remains equal.} 19. Bxe3 f6) 19. c3 {[%emt 0:10:45]} (19. Rg1 $16) 19... f6 {[%emt 0:09:49]} 20. Nd4 {[%emt 0:02:52]} Nxd4 {[%emt 0:01:03]} 21. cxd4 {[%emt 0:00:07]} Rd8 {[%emt 0:07:07]} (21... Bh6 $14) 22. f5 $16 {[%emt 0:02:39]} Bc8 {[%emt 0:00:14] [#]} 23. e6 $1 {[%emt 0:07:42]} Rxd4 {[%emt 0:00:28]} 24. Nc2 {[%emt 0:00:25]} Rd5 {[%emt 0:00:51]} ({Resist} 24... Rd1 25. b5 $16) 25. Ne3 {[%emt 0:00:21]} Rd4 {[%emt 0:00:48]} 26. Nc2 {[%emt 0:00:57]} (26. Be2 $16) 26... Rd5 $1 $11 {[%emt 0:07:19]} ({Much less strong is} 26... Rd1 27. b5 $16) 27. Ne3 {[%emt 0:00:06] Weighted Error Value: White=0.23 (precise) /Black=0.18 (very precise)} 1/2-1/2